[Event "1st Serbian League 2022"]
[Site "Vrnjacka Banja"]
[Date "2022.09.27"]
[Round "8.32"]
[White "Djokic, Mihailo"]
[Black "Stojanovic, Mihajlo"]
[Result "0-1"]
[ECO "C13"]
[WhiteElo "2197"]
[BlackElo "2494"]
[Annotator "TA"]
[PlyCount "90"]
[EventDate "2022.09.20"]
[EventType "team-tourn"]
[EventCountry "SRB"]
[SourceTitle "playchess.com"]
[Source "ChessBase"]
[SourceQuality "1"]
[TimeControl "40/5400+30:1800+30"]

{[%evp 14,90,26,18,32,23,16,14,12,8,38,25,25,14,25,21,16,0,0,0,65,64,41,44,68,61,60,61,60,58,63,0,0,0,0,0,0,0,0,0,0,0,0,-323,-316,-297,-171,-146,-155,-152,-163,-195,-196,-192,-194,-362,-360,-1097,-344,-444,-445,-431,-424,-363,-316,-297,-254,-237,-93,-12835,-12835,-12836,-12835,-12833,-12833,-12839,-12839,-12837,-12836]} 1. e4 {[%emt 0:00:02]} e6 {[%emt 0:00:07]} 2. d4 {[%emt 0:00:04]} d5 {[%emt 0:00:05]} 3. Nc3 {[%emt 0:00:06]} Nf6 {[%emt 0:00:06]} 4. Bg5 {[%emt 0:00:04]} dxe4 {[%emt 0:00:08]} 5. Nxe4 {[%emt 0:00:09]} Be7 {[%emt 0:00:05]} 6. Bxf6 {[%emt 0:00:12]} gxf6 {[%emt 0:00:07]} 7. Nf3 {[%emt 0:00:07]} f5 {[%emt 0:00:24]} 8. Nc3 {[%emt 0:00:18]} a6 {[%emt 0:00:07] C13: French: Classical System: 4 Bg5 Be7, Alekhine-Chatard Attack.} 9. g3 {[%emt 0:00:05]} b5 {[%emt 0:00:06]} 10. Bg2 {[%emt 0:00:06]} Bb7 {[%emt 0:00:07] The position is equal.} 11. O-O {[%emt 0:00:14][%cal Od4d5] next d5! is good for White.} Bf6 {[%emt 0:00:05][%cal Oc7c5]} 12. Qe2 {[%emt 0:12:16] [#]} Qe7 $146 {[%emt 0:00:12]} ({Predecessor:} 12... O-O 13. Rad1 b4 14. Na4 Nd7 15. Ne5 Bxg2 16. Kxg2 Nb6 17. Nc5 Qd5+ 18. Nf3 a5 {1-0 (54) Hansen,E (2573)-Williams,S (2439) London 2015}) 13. Ne5 {[%emt 0:08:47][%cal Bf3e5,Be5d3,Bd3f4][%mdl 32]} Bxg2 {[%emt 0:00:24]} 14. Kxg2 {[%emt 0:00:08]} c5 {[%emt 0:00:04]} 15. Qf3 {[%emt 0:08:00]} Ra7 {[%emt 0:00:56]} 16. Rfe1 {[%emt 0:00:24][%cal Oc3d5]} O-O {[%emt 0:06:18]} (16... Bxe5 $11 17. dxe5 Qb7) 17. d5 $1 $14 {[%emt 0:04:43]} Qd6 {[%emt 0:37:05]} 18. Nd3 {[%emt 0:18:28]} b4 {[%emt 0:14:01]} 19. Ne4 {[%emt 0:06:12]} fxe4 {[%emt 0:00:30]} 20. Qxf6 {[%emt 0:00:03]} Qxd5 {[%emt 0:09:16]} (20... exd3 $2 21. Re5 h6 22. Rh5 dxc2 23. Rxh6 Qxd5+ 24. f3 Qd2+ 25. Kh3 Qxh6+ 26. Qxh6 $18) 21. Nf4 {[%emt 0:00:48]} Qf5 {[%emt 0:01:07]} 22. Qh6 {[%emt 0:02:00]} ({Better is} 22. Qxf5 $14 exf5 23. Red1) 22... Nd7 {[%emt 0:14:32]} 23. Rad1 {[%emt 0:06:17]} Nf6 {[%emt 0:02:13] Prevents Nh5.} 24. h3 {[%emt 0:04:09]} Nd5 {[%emt 0:00:52]} 25. Nxd5 {[%emt 0:02:42]} exd5 {[%emt 0:00:03] Dancing on a razor blade.} 26. Qc6 {[%emt 0:06:31]} Qf3+ {[%emt 0:02:49]} 27. Kg1 {[%emt 0:01:01]} e3 {[%emt 0:00:23]} 28. fxe3 {[%emt 0:00:48][%mdl 8192]} (28. Qxc5 $11 d4 29. Re2 (29. Qxa7 {gets mated.} exf2+ 30. Kh2 fxe1=Q 31. Rxe1 Qf2+ 32. Kh1 Qxe1+ 33. Kg2 Qe2+ 34. Kg1 Qd1+ 35. Kh2 Re8 36. Qxa6 Qf3 37. h4 Re1 38. Qc8+ Kg7) (29. Qxd4 Qxf2+ 30. Kh1 Qf3+ 31. Kh2 Rc7 $15) (29. Qg5+ $2 Kh8 $19)) 28... Qxg3+ $19 {[%emt 0:00:13]} 29. Kf1 {[%emt 0:00:57]} Qxh3+ {[%emt 0:01:27]} (29... Qf3+ $142 30. Kg1 Kh8) 30. Kf2 {[%emt 0:01:40] [#] Intending Rg1+ and mate.} Qf5+ {[%emt 0:00:14]} 31. Ke2 {[%emt 0:00:17] Black must now prevent Rg1+.} Qxc2+ {[%emt 0:01:55]} 32. Kf3 {[%emt 0:00:33] Rg1+ is the strong threat.} Qe4+ {[%emt 0:05:41]} (32... Qxb2 $2 33. Rg1+ Kh8 34. Qh6 $18) 33. Kf2 {[%emt 0:00:17]} Qh4+ {[%emt 0:00:23]} 34. Kf3 $2 {[%emt 0:00:31]} (34. Ke2) 34... Re7 {[%emt 0:02:30]} 35. Qxc5 $2 {[%emt 0:03:18]} (35. Rg1+ Kh8 36. Qxc5) 35... Rfe8 $2 {[%emt 0:00:56]} (35... Qh5+ 36. Kf2 Qh2+ 37. Kf3 Re6 38. Rxd5 Rf6+ 39. Ke4 Qh4+ 40. Kd3 Qxe1) 36. Qd4 {[%emt 0:00:48]} Qh3+ {[%emt 0:01:13]} 37. Kf2 {[%emt 0:00:06] Rg1+ would kill now.} Qf5+ {[%emt 0:00:18]} ({Don't go for} 37... Qh2+ $2 38. Kf3 Qh3+ 39. Kf2 Qf5+ 40. Ke2 Rxe3+ 41. Qxe3 Rxe3+ 42. Kxe3 $19) 38. Ke2 {[%emt 0:00:17] Hoping for Rg1+.} f6 {[%emt 0:01:37]} 39. Rg1+ {[%emt 0:01:57]} Kf7 {[%emt 0:00:31]} 40. Rg3 {[%emt 0:00:09] [#]} Rc8 {[%emt 0:00:34]} ({And not} 40... b3 41. Qxd5+ Qxd5 42. Rxd5 $17) (40... Re5 $1 $19 {has better winning chances. Strongly threatening ...Qh5+.} 41. Qh4 a5) 41. Qxb4 $2 {[%emt 0:32:48][%mdl 8192] White does not recover from this.} (41. Qxd5+ $17 Qxd5 42. Rxd5) 41... Rc2+ {[%emt 0:09:57] Black is clearly winning.} 42. Rd2 {[%emt 0:00:00]} Rec7 {[%emt 0:00:49]} 43. Rf3 {[%emt 0:00:00]} Qg6 {[%emt 0:01:36]} 44. Kf1 {[%emt 0:00:00]} Rxd2 {[%emt 0:01:39]} 45. Qxd2 {[%emt 0:00:00]} Qb1+ {[%emt 0:19:15] Weighted Error Value: White=0.47/Black=0.29 (precise)} 0-1

[Event "1st Serbian League 2022"]
[Site "Vrnjacka Banja"]
[Date "2022.09.27"]
[Round "8.33"]
[White "Pezelj, Novak"]
[Black "Jocev, Milan"]
[Result "1/2-1/2"]
[ECO "C84"]
[WhiteElo "2496"]
[BlackElo "2283"]
[Annotator "TA"]
[PlyCount "47"]
[EventDate "2022.09.20"]
[EventType "team-tourn"]
[EventCountry "SRB"]
[SourceTitle "playchess.com"]
[Source "ChessBase"]
[SourceQuality "1"]
[TimeControl "40/5400+30:1800+30"]

{[%evp 18,47,-25,-21,-35,-29,-31,-35,-20,-14,-14,-14,-14,-18,-11,-11,-11,-15,-12,-13,-14,-25,0,-15,-5,-10,0,-30,-18,-25,-22,-22]} 1. e4 {[%emt 0:00:11]} e5 {[%emt 0:00:08][%cal Be7e5,Be5d4][%mdl 32]} 2. Nf3 {[%emt 0:00:24]} Nc6 {[%emt 0:00:07]} 3. Bb5 {[%emt 0:00:32]} a6 {[%emt 0:00:16]} 4. Ba4 {[%emt 0:00:32]} Nf6 {[%emt 0:00:18][%cal Bg8f6,Bf6e4,Be4c5,Bc5e6][%mdl 32]} 5. d4 {[%emt 0:02:22]} exd4 {[%emt 0:04:18]} 6. O-O {[%emt 0:05:27]} Be7 {[%emt 0:09:08]} 7. e5 {[%emt 0:02:44]} Ne4 {[%emt 0:00:22]} 8. Re1 {[%emt 0:03:01]} Nc5 {[%emt 0:04:44]} 9. Bxc6 {[%emt 0:01:46]} dxc6 {[%emt 0:00:09]} 10. Nxd4 {[%emt 0:00:08]} Ne6 {[%emt 0:06:03] C84: Closed Ruy Lopez: Unusual White 6th moves.} 11. Nf5 {[%emt 0:01:28]} Qxd1 {[%emt 0:00:20]} 12. Rxd1 {[%emt 0:00:06]} Bf8 {[%emt 0:00:15] Black is slightly better.} 13. Nc3 {[%emt 0:04:40]} Bd7 {[%emt 0:09:33]} 14. Be3 {[%emt 0:03:57]} O-O-O {[%emt 0:01:16] [#]} 15. Rd2 $146 {[%emt 0:01:32]} ({Predecessor:} 15. a3 h6 16. Ng3 Be7 17. f4 g6 18. f5 gxf5 19. Nxf5 Bf8 20. Rf1 c5 21. Rad1 {½-½ (52) Gashimov,V (2664)-Harikrishna,P (2668) Reggio Emilia 2008}) 15... h5 {[%emt 0:13:03]} 16. Ne4 {[%emt 0:11:58]} (16. Rad1 {with more complications.} h4 17. Ne4 Rh5 18. g4) 16... g6 {[%emt 0:22:56]} (16... h4 {feels hotter.} 17. Rad1 Rh5 18. g4 hxg3 19. Nexg3 Rh8) 17. Nh4 {[%emt 0:04:26][%cal Bf5h4,Bh4f3,Bf3g5,Bg5e6][%mdl 32]} Be7 {[%emt 0:02:54]} 18. Nf3 {[%emt 0:00:33]} c5 {[%emt 0:00:36]} 19. Nfg5 {[%emt 0:03:43]} (19. Rad1 {with more complications.} Bc6 20. Nfg5 Rxd2 21. Rxd2 Re8 22. Nxe6 Bxe4 23. Nxc5 Bxc5 24. Bxc5 Rxe5 25. Bd4) 19... Bc6 {[%emt 0:02:54]} 20. Rad1 {[%emt 0:13:14]} Rxd2 {[%emt 0:03:05]} 21. Rxd2 {[%emt 0:00:30]} Rd8 {[%emt 0:07:31]} 22. Rxd8+ {[%emt 0:02:08]} Bxd8 {[%emt 0:00:20]} 23. Nxe6 {[%emt 0:02:49]} Bxe4 {[%emt 0:00:28]} 24. Nxd8 {[%emt 0:00:30] Weighted Error Value: White=0.05 (flawless) /Black=0.04 (flawless)} 1/2-1/2

[Event "1st Serbian League 2022"]
[Site "Vrnjacka Banja"]
[Date "2022.09.27"]
[Round "8.34"]
[White "Stankovic, Boris"]
[Black "Ratkovic, Milovan"]
[Result "0-1"]
[ECO "B12"]
[WhiteElo "2208"]
[BlackElo "2411"]
[Annotator "TA"]
[PlyCount "102"]
[EventDate "2022.09.20"]
[EventType "team-tourn"]
[EventCountry "SRB"]
[SourceTitle "playchess.com"]
[Source "ChessBase"]
[SourceQuality "1"]
[TimeControl "40/5400+30:1800+30"]

{[%evp 9,102,-12,0,13,12,-7,8,4,47,45,48,64,55,59,92,29,66,41,41,30,13,-15,-12,-18,-14,-14,-9,-24,-32,-19,-22,-25,-9,-9,-4,-11,-6,-8,7,-15,-9,-42,-4,-3,16,18,7,0,0,0,26,0,0,-7,-29,-51,-44,-40,-34,-45,0,0,0,-41,-34,-40,0,0,89,92,87,10,14,16,16,9,43,41,30,47,31,0,0,-146,-143,-1100,-975,-957,-686,-583,-574,-1726,-1564,-1552,-454]} 1. e4 {[%emt 0:04:34]} c6 {[%emt 0:00:23]} 2. d4 {[%emt 0:00:07]} d5 {[%emt 0:00:05]} 3. f3 {[%emt 0:00:04]} e6 {[%emt 0:00:52]} 4. Nc3 {[%emt 0:00:27]} Bb4 {[%emt 0:00:51]} 5. Bf4 {[%emt 0:01:41]} Ne7 {[%emt 0:00:42]} 6. Qd3 {[%emt 0:01:23] B12: Caro-Kann: Advance Variation.} b6 {[%emt 0:00:32]} 7. Nge2 {[%emt 0:00:49]} Ba6 {[%emt 0:00:47]} (7... c5 $5 {[%cal Rc8a6]}) 8. Qe3 {[%emt 0:00:08] The position is equal.} Nd7 {[%emt 0:02:58]} 9. O-O-O {[%emt 0:02:05] [#]} Bc4 $146 {[%emt 0:04:46]} ({Predecessor:} 9... Rc8 10. g4 O-O 11. a3 Bxc3 12. Nxc3 Bxf1 13. Rhxf1 Re8 14. Bd6 Ra8 15. Rde1 Nf6 {0-1 (36) Djukic,N (2510)-Braun,A (2609) Tornelo INT 2021}) 10. a3 {[%emt 0:04:59]} Bxc3 {[%emt 0:02:03]} 11. Nxc3 {[%emt 0:00:18]} b5 {[%emt 0:05:06]} 12. Bd6 {[%emt 0:18:05]} (12. Bxc4 $16 bxc4 13. h4) 12... Nb6 {[%emt 0:11:07]} 13. Bc5 {[%emt 0:01:24]} (13. Qf4 $5 {[%cal Rh2h4]}) 13... O-O {[%emt 0:03:21]} 14. Qg5 {[%emt 0:12:53]} Re8 {[%emt 0:01:31][%cal Bf8e8,Be8d8,Bd8d5][%mdl 32]} 15. exd5 {[%emt 0:00:45]} (15. Bxc4 {feels hotter.} Nxc4 16. h4 a5 17. Ne2) 15... Nexd5 {[%emt 0:04:57]} 16. Qxd8 {[%emt 0:01:43]} (16. Ne4 {is more complex.} Qxg5+ 17. Nxg5 Bxf1 18. Rdxf1 a5 19. Ne4) 16... Rexd8 {[%emt 0:01:32]} 17. Nxd5 {[%emt 0:02:50]} Rxd5 {[%emt 0:03:23]} 18. Bd3 {[%emt 0:11:56]} Bxd3 {[%emt 0:02:20]} 19. Rxd3 {[%emt 0:00:27]} Nd7 {[%emt 0:02:05]} 20. Rhd1 {[%emt 0:01:33]} f6 {[%emt 0:03:31]} 21. Bb4 {[%emt 0:01:24]} Kf7 {[%emt 0:02:06]} 22. b3 {[%emt 0:01:33]} a5 {[%emt 0:02:23]} 23. Be1 {[%emt 0:00:53]} h5 {[%emt 0:05:18]} 24. h4 {[%emt 0:07:20]} a4 {[%emt 0:02:30]} 25. Kb2 {[%emt 0:06:43]} (25. c4 $5 {[%cal Rc4d5]} Rf5 26. cxb5 cxb5 27. d5 $11) 25... Rf5 {[%emt 0:09:47]} 26. Rc3 {[%emt 0:01:55]} Ra6 {[%emt 0:01:19]} 27. bxa4 {[%emt 0:02:35]} bxa4 {[%emt 0:00:50]} 28. Ka2 {[%emt 0:00:27]} Rd5 {[%emt 0:04:56]} 29. Bf2 {[%emt 0:02:14]} g5 {[%emt 0:06:28]} (29... c5 $5 {[%cal Re6e5]}) 30. Rb1 {[%emt 0:00:32]} gxh4 {[%emt 0:00:44]} 31. Rb7 {[%emt 0:01:59]} Ke7 {[%emt 0:01:13]} 32. Rc5 {[%emt 0:03:42]} Kd6 {[%emt 0:12:27]} 33. Rxd5+ {[%emt 0:00:49]} cxd5 {[%emt 0:00:04]} 34. Bxh4 $15 {[%emt 0:01:07][%mdl 4096] Endgame KRB-KRN} Rc6 {[%emt 0:00:14]} 35. Kb2 {[%emt 0:02:50]} Rc4 {[%emt 0:02:46]} 36. c3 {[%emt 0:01:20]} e5 {[%emt 0:00:28]} 37. Bf2 {[%emt 0:00:45]} Ke6 {[%emt 0:01:28]} (37... Rc8 $5 {[%cal Rc8g8]} 38. Bh4 Rg8 $11) 38. Ra7 {[%emt 0:00:52]} e4 {[%emt 0:01:01] [#]} (38... Rc8 $11) 39. Ra6+ $1 $16 {[%emt 0:01:21]} Ke7 {[%emt 0:00:19]} 40. Kc2 {[%emt 0:00:22]} (40. Bh4 $16) 40... Rc8 {[%emt 0:00:28]} 41. fxe4 {[%emt 0:06:22]} Rg8 $1 {[%emt 0:10:21]} 42. g3 {[%emt 0:00:01]} (42. exd5 Rxg2 43. Re6+ Kf7 $17) 42... dxe4 {[%emt 0:02:32][%cal Oh5h4] And now ...h4! would win.} (42... h4 $5 {[%cal Rh4h3]} 43. exd5 (43. gxh4 Rg2 $11) 43... hxg3 $11) 43. Kd2 {[%emt 0:00:13]} ({Weaker is} 43. Rxa4 h4 44. d5 (44. gxh4 $2 Rg2 $19) 44... hxg3 45. Rxe4+ Kd6 $17) 43... f5 {[%emt 0:02:19][%cal Oh5h4]} 44. d5 {[%emt 0:07:02]} Rb8 $1 {[%emt 0:06:54]} 45. Rxa4 {[%emt 0:05:13]} Rb2+ {[%emt 0:01:25]} 46. Ke3 {[%emt 0:02:56] [#]} (46. Ke1 $1 $11 {was the only way to keep the balance.}) 46... Nb6 $1 $17 {[%emt 0:05:36][%csl LRa4,LRd5] Black is more active.} 47. Ra6 {[%emt 0:07:26][%mdl 8192] This costs White the game.} (47. Ra7+ $17 Kd6 48. Be1) 47... Nxd5+ $19 {[%emt 0:00:55] Black is clearly winning.} 48. Kd4 {[%emt 0:00:12]} Nc7 {[%emt 0:01:10]} 49. Ra7 {[%emt 0:00:28]} Kd6 {[%emt 0:00:31]} ({Inferior is} 49... Rxf2 50. Rxc7+ Kd6 51. Rc8 $17) 50. Ke3 {[%emt 0:00:44]} Nd5+ {[%emt 0:00:16]} 51. Kd4 {[%emt 0:00:00]} Rd2+ {[%emt 0:00:26] Weighted Error Value: White=0.37/Black=0.19 (very precise)} 0-1

[Event "1st Serbian League 2022"]
[Site "Vrnjacka Banja"]
[Date "2022.09.27"]
[Round "8.35"]
[White "Ratkovic, Miloje"]
[Black "Radojicic, Aleksandar M"]
[Result "1-0"]
[ECO "D02"]
[WhiteElo "2498"]
[BlackElo "2192"]
[Annotator "TA"]
[PlyCount "141"]
[EventDate "2022.09.20"]
[EventType "team-tourn"]
[EventCountry "SRB"]
[SourceTitle "playchess.com"]
[Source "ChessBase"]
[SourceQuality "1"]
[TimeControl "40/5400+30:1800+30"]

{[%evp 9,141,19,33,28,43,5,16,18,18,0,0,-1,0,0,0,-2,22,20,29,-4,-9,-11,-5,0,0,0,0,0,0,0,24,9,12,16,13,10,9,24,66,18,69,77,70,62,102,102,103,89,82,99,92,69,117,116,198,181,181,166,172,182,202,124,353,352,400,374,411,362,393,363,379,361,608,393,600,583,584,581,547,507,391,382,497,497,445,440,789,778,933,925,902,886,852,849,705,691,1420,1347,1630,1577,1310,1387,2075,1864,6195,5585,3019,3420,29965,29960,29966,29972,29972,29973,29970,29975,29975,29976,29976,29977,29977,29978,29977,29979,29979,29980,29978,29979,29983,29984,29984,29985,29985,29986]} 1. d4 {[%emt 0:00:04] Alekhine/Primel,D} Nf6 {[%emt 0:00:04]} 2. Nf3 {[%emt 0:00:58]} c5 {[%emt 0:00:04]} 3. c3 {[%emt 0:01:19]} d5 {[%emt 0:00:18]} 4. dxc5 {[%emt 0:02:16]} a5 {[%emt 0:03:31]} 5. e4 {[%emt 0:00:18] [#]} e6 $146 {[%emt 0:20:37]} ({Predecessor:} 5... Nxe4 6. Bb5+ Nc6 7. Be3 Bg4 8. Qa4 Bd7 9. Nbd2 Nxd2 10. Nxd2 e5 11. O-O Be7 12. Rad1 {0-1 (47) Alekhine,A-Iglitsky,A Odessa 1919 EXT 2021 [Alekhine/Primel,D]}) 6. exd5 {[%emt 0:14:04] D02: 1 d4 d5 2 Nf3 sidelines, including 2...Nf6 3 g3 and 2...Nf6 3 Bf4.} Nxd5 {[%emt 0:01:25]} 7. Ne5 {[%emt 0:14:11]} Bxc5 {[%emt 0:11:43]} 8. Bb5+ {[%emt 0:01:02] The position is equal.} Nd7 {[%emt 0:06:15][%cal Oc5f2]} 9. O-O {[%emt 0:13:53]} O-O {[%emt 0:06:07]} 10. Bxd7 {[%emt 0:07:20]} Bxd7 {[%emt 0:00:41]} 11. c4 {[%emt 0:00:42] Against Bb5} Nb6 {[%emt 0:05:00][%cal Bd5b6,Bb6d7,Bd7e5][%mdl 32]} 12. Nc3 {[%emt 0:01:54][%cal Bb1c3,Bc3a4,Ba4b6,Bb6d7][%mdl 32]} f6 {[%emt 0:06:05]} 13. Nxd7 {[%emt 0:03:07]} Qxd7 {[%emt 0:00:31]} 14. Qxd7 {[%emt 0:06:29]} Nxd7 {[%emt 0:00:02]} 15. Rd1 {[%emt 0:01:44]} Ne5 {[%emt 0:18:49]} 16. Na4 {[%emt 0:06:23]} Rfd8 {[%emt 0:01:58][%cal Rd8d1] [#]} 17. Bf4 {[%emt 0:00:44]} Bd4 {[%emt 0:01:27]} 18. Bxe5 {[%emt 0:01:19]} Bxe5 {[%emt 0:06:49]} 19. Nb6 {[%emt 0:00:41]} Rab8 {[%emt 0:02:45]} 20. Nd7 {[%emt 0:00:38]} Rbc8 {[%emt 0:00:06]} 21. Nxe5 {[%emt 0:00:22]} fxe5 $11 {[%emt 0:00:12][%mdl 4096] Endgame KRR-KRR} 22. b3 {[%emt 0:00:30]} Kf7 {[%emt 0:00:48]} 23. Kf1 {[%emt 0:00:27]} Rd4 {[%emt 0:02:26]} 24. Ke2 {[%emt 0:00:21]} (24. Rxd4 $1 $14 exd4 25. f4) 24... Rcd8 {[%emt 0:00:51]} ({Better is} 24... g5 $11) 25. Rxd4 $1 $14 {[%emt 0:12:47]} Rxd4 {[%emt 0:00:08] KR-KR} 26. Rd1 {[%emt 0:01:41]} Re4+ {[%emt 0:00:04]} 27. Kf3 {[%emt 0:02:04]} Rf4+ {[%emt 0:00:02]} 28. Ke3 {[%emt 0:00:14]} Ke7 {[%emt 0:00:03] Prevents Rd7+.} 29. g3 {[%emt 0:02:01] Against Rh4} Rf8 {[%emt 0:00:01]} 30. h4 {[%emt 0:00:36]} Rc8 {[%emt 0:01:19]} (30... Rf5 $14 {was preferrable.}) 31. Ke4 $16 {[%emt 0:00:18]} Rc5 {[%emt 0:00:12]} (31... Rf8 $16) 32. a4 $18 {[%emt 0:01:02]} h6 {[%emt 0:02:53]} 33. Rd2 {[%emt 0:00:15]} Rc8 {[%emt 0:01:59]} 34. Kxe5 {[%emt 0:00:19]} Rf8 {[%emt 0:00:35]} 35. Ke4 {[%emt 0:01:42] Against Rf3. Black must now prevent h5.} Rf5 $2 {[%emt 0:01:09] This move loses the game for Black.} (35... g5 $16 36. hxg5 hxg5) 36. g4 {[%emt 0:02:56]} Rf8 {[%emt 0:00:22]} 37. h5 {[%emt 0:00:12]} Rc8 {[%emt 0:00:57]} 38. f3 {[%emt 0:00:53][%cal Bf2f3,Bf3f4][%mdl 32]} Rc5 {[%emt 0:00:30]} 39. Rd3 {[%emt 0:00:44]} Rc8 {[%emt 0:00:12]} 40. Rd4 {[%emt 0:00:38]} b6 $2 {[%emt 0:00:43]} (40... Rg8 41. Rd1 Rc8) 41. Rd3 {[%emt 0:30:36] [#] f4 is the strong threat.} Rf8 {[%emt 0:01:21]} (41... Rg8 $142 42. f4 Rc8) 42. Ke5 {[%emt 0:00:00]} Rc8 {[%emt 0:00:28]} 43. f4 {[%emt 0:00:00]} Rc5+ {[%emt 0:01:25]} 44. Kd4 {[%emt 0:00:00]} Rc8 {[%emt 0:04:32]} 45. Re3 {[%emt 0:00:00] Hoping for f5.} Kd6 {[%emt 0:01:31]} 46. Re5 {[%emt 0:00:00]} Rf8 {[%emt 0:04:46]} 47. Ke4 {[%emt 0:00:00]} Rf6 {[%emt 0:01:03]} (47... Rc8 $142 48. Rb5 Rc6) 48. Rb5 {[%emt 0:00:00]} Kc6 {[%emt 0:00:32]} 49. c5 {[%emt 0:00:00]} bxc5 {[%emt 0:00:15]} 50. Rxa5 {[%emt 0:00:00]} Kb6 {[%emt 0:00:10]} 51. Rb5+ {[%emt 0:00:00]} Kc6 {[%emt 0:00:02]} 52. Ke5 {[%emt 0:00:00] aiming for b4.} Rf8 {[%emt 0:00:45]} 53. b4 {[%emt 0:00:00]} cxb4 {[%emt 0:00:30]} 54. Rxb4 {[%emt 0:00:00]} Re8 {[%emt 0:02:58]} 55. Rd4 {[%emt 0:00:00]} Kc7 {[%emt 0:01:07]} 56. a5 {[%emt 0:00:00][%cal Ba4a5,Ba5a6][%mdl 32]} Re7 {[%emt 0:04:00]} 57. a6 {[%emt 0:00:00] Threatening mate with Ra4.} Kb6 {[%emt 0:00:58]} 58. Rd6+ {[%emt 0:00:00]} Ka7 {[%emt 0:00:01]} 59. Rxe6 {[%emt 0:00:00] White mates.} Rc7 {[%emt 0:00:13]} 60. Kf5 {[%emt 0:00:00]} Rf7+ {[%emt 0:00:11]} 61. Kg6 {[%emt 0:00:51]} Rxf4 {[%emt 0:00:07]} 62. Kxg7 {[%emt 0:00:10]} Rxg4+ {[%emt 0:00:02]} 63. Kxh6 {[%emt 0:00:12]} Rg1 {[%emt 0:01:28]} 64. Kh7 {[%emt 0:00:09]} Rg2 {[%emt 0:02:02]} 65. h6 {[%emt 0:00:06][%cal Bh5h6,Bh6h7][%mdl 32]} Rg1 {[%emt 0:00:25]} 66. Kh8 {[%emt 0:00:26]} Rg2 {[%emt 0:00:38]} 67. h7 {[%emt 0:00:21]} Rg1 {[%emt 0:00:25]} 68. Re8 {[%emt 0:00:17]} Rc1 {[%emt 0:01:06]} 69. Kg7 {[%emt 0:00:18]} Rg1+ {[%emt 0:00:10]} 70. Kf6 {[%emt 0:00:08]} Rf1+ {[%emt 0:00:03]} 71. Kg5 {[%emt 0:00:26] Weighted Error Value: White=0.12 (very precise) /Black=0.48} 1-0